bitfinex/quotes_ETHUSD_20241223
["timestamp","ask_amount","ask_price","bid_price","bid_amount"]
[1734940109144,1.5545,3304.8,3304.2,1.594]
[1734940109533,1.5545,3304.8,3304.3,9.27955964]
[1734940109833,3.02582,3304.9,3304.3,9.27955964]
[1734940110029,3.0259,3304.8,3304.3,9.27955964]
[1734940110586,3.02599,3304.7,3304.3,9.27955964]
[1734940111465,3.02626,3304.4,3304.3,8.72955964]
[1734940111645,1.622,3304.7,3303.9,3.0]
[1734940111847,3.02617,3304.5,3303.9,3.0]
[1734940112060,3.02617,3304.5,3303.8,10.29925964]
[1734940112061,3.02645,3304.3,3303.8,10.29925964]
[1734940112570,3.02646,3304.2,3303.8,8.72955964]
[1734940112871,3.02646,3304.2,3303.9,0.55]
[1734940113859,1.622,3304.7,3303.7,0.55]
[1734940114056,1.6545,3304.1,3303.7,0.55]
[1734940114269,3.02647,3304.2,3303.7,0.55]
[1734940116480,1.6545,3304.4,3303.7,0.55]
[1734940116684,4.6808,3304.4,3303.7,0.55]
[1734940117005,3.02645,3304.2,3303.7,0.55]
[1734940117143,0.59966724,3305.1,3303.7,0.55]
[1734940117144,3.02604,3304.7,3303.7,9.27955964]
[1734940117339,3.02581,3304.9,3304.0,0.55]
[1734940117556,3.02581,3304.9,3304.2,0.55]
[1734940118165,3.02566,3305.1,3304.2,0.55]
[1734940118377,3.02588,3304.9,3304.2,0.55]
[1734940118707,1.6545,3305.2,3304.2,0.55]
[1734940118708,3.02605,3304.7,3304.2,0.55]
[1734940119803,3.02584,3304.9,3304.2,0.55]
[1734940120203,3.02564,3305.1,3304.2,9.27955964]
[1734940120364,1.5327,3305.6,3304.7,0.55]
[1734940120574,4.5576,3305.9,3305.0,8.72955964]
[1734940120865,1.6238,3306.2,3305.3,0.55]
[1734940121064,3.02473,3306.1,3305.3,0.55]
[1734940121453,3.02483,3306.0,3305.3,0.55]
[1734940121653,3.02463,3306.2,3305.3,3.55]
[1734940122448,3.02477,3306.1,3305.3,3.55]
[1734940122600,3.02449,3306.4,3305.6,3.55]
[1734940122805,1.5086,3306.6,3305.6,3.55]
[1734940122806,4.53287,3306.6,3305.8,0.55]
[1734940122953,1.5086,3306.6,3305.7,1.5885]
[1734940123158,3.02446,3306.4,3305.7,1.5885]
[1734940123354,1.5493,3307.0,3305.8,0.55]
[1734940123554,3.024,3306.9,3306.1,8.72955964]
[1734940123812,3.024,3306.9,3306.3,1.6528]
[1734940123959,1.5493,3307.0,3306.4,0.55]
[1734940124515,2.52943816,3307.7,3306.5,8.72955964]
[1734940124816,2.52943816,3307.7,3306.8,5.061]
[1734940125417,3.02352,3307.4,3306.8,2.061]
[1734940126062,3.0236,3307.4,3306.8,2.061]
[1734940126276,1.554,3307.9,3306.8,2.061]
[1734940126510,3.02365,3307.3,3306.8,2.061]
[1734940127278,3.02367,3307.3,3306.8,2.061]
[1734940129190,0.302367,3307.3,3306.8,0.55]
[1734940129440,1.6337,3307.6,3306.5,9.27955964]
[1734940129650,4.65704,3307.6,3306.5,9.27955964]
[1734940129826,3.02408,3306.8,3306.5,9.27955964]
[1734940130659,1.5455,3306.8,3306.1,1.5078]
[1734940131103,3.02443,3306.5,3306.0,3.0]
[1734940131297,3.02443,3306.5,3305.8,2.8049892]
[1734940131498,3.02443,3306.5,3305.9,3.0]
[1734940132230,3.02443,3306.5,3305.9,0.55]
[1734940133053,3.02418,3306.7,3305.9,0.55]
[1734940133220,3.02429,3306.6,3305.9,0.55]
[1734940133769,1.5455,3306.8,3305.9,0.55]
[1734940133929,3.02441,3306.5,3305.9,0.55]
[1734940134426,3.02466,3306.2,3305.9,0.55]
[1734940134631,3.02466,3306.2,3305.9,9.27955964]
[1734940134835,1.5455,3306.8,3305.9,8.72955964]
[1734940135131,3.0248,3306.0,3305.9,8.72955964]
[1734940135349,3.0248,3306.0,3305.7,1.6072]
[1734940136210,3.0248,3306.0,3305.8,0.55]
[1734940136817,1.5455,3306.8,3305.8,0.55]
[1734940136818,3.02489,3305.9,3305.8,0.55]
[1734940137049,3.02489,3305.9,3305.7,0.55]
[1734940137653,3.02473,3306.1,3305.7,0.55]
[1734940139151,3.02484,3306.0,3305.7,0.55]
[1734940140474,1.5455,3306.8,3305.7,0.55]
[1734940140674,3.02478,3306.1,3305.7,0.55]
[1734940141157,3.02456,3306.3,3305.7,0.445]
[1734940141350,0.15455,3306.7,3305.7,0.445]
[1734940141552,3.0244,3306.5,3305.7,0.445]
[1734940143154,0.15455,3306.7,3305.7,0.445]
[1734940143155,3.02456,3306.3,3305.7,0.445]
[1734940143360,3.02464,3306.2,3305.7,0.445]
[1734940146138,3.02464,3306.2,3305.8,2.8049892]
[1734940146549,0.170005,3306.6,3305.8,2.8049892]
[1734940146550,3.02473,3306.1,3305.8,2.8049892]
[1734940146758,3.02434,3306.5,3305.7,0.445]
[1734940146930,3.02507,3305.7,3305.3,3.0]
[1734940147129,1.5409,3306.0,3304.8,10.39215964]
[1734940147329,3.02581,3304.9,3304.7,8.72955964]
[1734940147524,1.5409,3305.4,3304.6,8.72955964]
[1734940148260,3.02591,3304.8,3304.6,8.72955964]
[1734940149241,3.02544,3305.3,3304.4,8.72955964]
[1734940150564,3.02617,3304.5,3304.4,8.72955964]
[1734940150945,3.02544,3305.3,3304.4,8.72955964]
[1734940151147,3.02612,3304.6,3304.4,8.72955964]
[1734940151762,3.02617,3304.5,3304.4,8.72955964]
[1734940151945,3.02617,3304.5,3304.0,1.5844]
[1734940153249,3.02617,3304.5,3304.1,0.55]
[1734940153946,0.456634,3305.2,3304.1,0.55]
[1734940154283,3.02599,3304.8,3304.1,0.55]
[1734940154480,0.3482074,3305.1,3304.1,0.55]
[1734940154654,3.02611,3304.6,3304.1,0.55]
[1734940156080,0.3482074,3305.1,3304.1,0.55]
[1734940156286,0.456634,3305.2,3304.1,9.27955964]
[1734940156494,3.0,3305.9,3304.3,3.3549892]
[1734940156805,3.02518,3305.6,3304.7,5.058]
[1734940157577,1.6221,3305.7,3304.7,5.058]
[1734940157892,3.02539,3305.4,3304.7,5.058]
[1734940161188,1.6221,3305.7,3304.7,5.058]
[1734940161189,4.64721,3305.7,3304.7,5.058]
[1734940161390,3.02516,3305.6,3304.7,2.058]
[1734940161558,1.6221,3305.7,3304.7,2.058]
[1734940162058,3.02539,3305.4,3304.7,2.058]
[1734940162262,3.0,3306.3,3304.7,2.058]
[1734940162457,3.02471,3306.1,3304.9,3.3549892]
[1734940162686,4.62608,3306.2,3305.1,0.55]
[1734940162868,3.02496,3305.9,3305.1,0.55]
[1734940163296,3.02508,3305.7,3305.1,0.55]
[1734940163959,3.0248,3306.0,3305.1,0.55]
[1734940164160,0.30248,3305.9,3305.1,0.55]
[1734940164360,3.02519,3305.6,3305.1,0.55]
[1734940164572,3.02527,3305.5,3305.0,1.5545]
[1734940164774,0.30248,3305.9,3305.0,1.5545]
[1734940164987,3.02552,3305.3,3305.0,1.5545]
[1734940165787,3.02553,3305.2,3304.6,1.6321]
[1734940166097,3.02553,3305.2,3304.6,5.1821]
[1734940166301,3.02538,3305.4,3304.6,5.1821]
[1734940166505,1.605,3305.5,3304.6,5.1821]
[1734940166672,3.02509,3305.7,3304.8,2.0695]
[1734940167370,4.53703,3306.1,3304.9,1.5195]
[1734940167572,3.0252,3305.6,3305.0,0.55]
[1734940167802,3.02519,3305.6,3305.0,0.55]
[1734940168192,3.0248,3306.0,3305.0,0.55]
[1734940168397,3.025,3305.8,3305.0,0.55]
[1734940169208,3.0248,3306.0,3305.0,0.55]
[1734940169209,3.02483,3306.0,3305.0,0.55]
[1734940169409,3.02483,3306.0,3305.2,2.1452]
[1734940170479,1.5413,3306.5,3305.4,0.55]
[1734940170798,3.02472,3306.1,3305.4,0.55]
[1734940171515,1.5413,3306.5,3305.4,0.55]
[1734940171810,3.0,3306.7,3305.5,1.5861]
[1734940172011,3.02475,3306.1,3305.6,0.55]
[1734940172310,3.02486,3306.0,3305.6,0.55]
[1734940172535,3.02486,3306.0,3305.5,1.5861]
[1734940172717,3.02516,3305.6,3305.3,0.55]
[1734940172916,1.813286,3306.0,3305.2,1.644]
[1734940173215,3.02522,3305.6,3305.2,1.644]
[1734940174820,3.02528,3305.5,3305.2,1.644]
[1734940175724,3.02509,3305.7,3305.2,1.644]
[1734940176293,3.02518,3305.6,3305.2,1.644]
[1734940176513,3.02528,3305.5,3305.2,1.644]
[1734940177229,0.302528,3305.5,3304.9,1.5511]
[1734940177390,3.327838,3305.5,3304.9,1.5511]
[1734940177586,3.02535,3305.4,3304.6,1.5511]
[1734940177800,3.02583,3304.9,3304.6,1.5511]
[1734940178322,3.02571,3305.0,3304.6,1.5511]
[1734940179346,1.582,3305.9,3304.7,0.55]
[1734940179555,3.0253,3305.5,3304.7,0.55]
[1734940179761,3.02536,3305.4,3304.7,0.55]
[1734940179927,3.02545,3305.3,3304.7,0.55]
[1734940180121,3.02553,3305.2,3304.7,0.55]
[1734940180450,3.02567,3305.1,3304.7,0.55]
[1734940180747,3.02572,3305.0,3304.6,1.5511]
[1734940181119,3.02526,3305.5,3304.6,1.5511]
[1734940181352,3.02624,3304.5,3304.3,1.5887]
[1734940181757,3.02624,3304.5,3304.0,4.5887]
[1734940182051,1.518,3304.9,3304.0,1.5887]
[1734940182351,3.02652,3304.2,3303.8,1.249655]
[1734940182748,3.02652,3304.2,3303.7,1.5887]
[1734940183047,3.02666,3304.0,3303.7,1.5887]
[1734940183251,1.628,3303.9,3303.3,1.249655]
[1734940183458,3.02718,3303.4,3303.3,1.249655]
[1734940183830,3.02718,3303.4,3302.9,1.249655]
[1734940184042,3.02746,3303.1,3302.9,1.249655]
[1734940184419,3.02755,3303.0,3302.9,1.249655]
[1734940185175,3.02755,3303.0,3302.4,1.5231]
[1734940185983,3.02755,3303.0,3302.5,0.55]
[1734940186470,1.628,3303.9,3302.5,0.55]
[1734940186649,3.0274,3303.2,3302.5,0.55]
[1734940186851,3.02681,3303.8,3302.5,0.55]
[1734940187436,3.02746,3303.1,3302.5,0.55]
[1734940188367,3.02735,3303.3,3302.5,0.55]
[1734940188547,3.02736,3303.2,3302.5,0.55]
[1734940189153,3.0275,3303.1,3302.5,0.55]
[1734940190574,0.30275,3303.1,3302.1,0.55]
[1734940190780,3.02778,3302.8,3302.1,2.198]
[1734940191664,3.02803,3302.5,3302.1,1.648]
[1734940191864,3.02782,3302.7,3301.8,1.6426]
[1734940192067,3.02837,3302.2,3301.3,0.60941776]
[1734940192618,1.5529,3302.0,3301.2,1.6426]
[1734940192940,3.02841,3302.1,3301.2,1.6426]
[1734940192941,3.02845,3302.1,3301.2,1.6426]
[1734940193247,3.02846,3302.1,3301.2,1.6426]
[1734940193606,1.5529,3302.4,3301.2,1.6426]
[1734940193910,3.02832,3302.2,3301.2,1.6426]
[1734940194046,1.5529,3302.4,3301.1,0.8832]
[1734940194245,1.5529,3302.4,3301.2,0.55]
[1734940194450,3.02837,3302.1,3301.2,0.55]
[1734940194957,0.7687,3302.8,3301.4,0.55]
[1734940195156,3.02791,3302.7,3301.6,3.02882]
[1734940195351,3.02791,3302.7,3301.7,0.55]
[1734940195550,0.7687,3302.8,3301.6,0.55]
[1734940195808,3.02813,3302.4,3301.6,0.55]
[1734940196144,6.193,3302.4,3300.4,9.52075964]
[1734940196380,3.02865,3301.8,3300.4,9.52075964]
[1734940196582,0.378985,3301.7,3300.4,0.7912]
[1734940196877,3.02898,3301.5,3300.5,0.59668366]
[1734940197380,3.02903,3301.4,3300.5,0.59668366]
[1734940197597,3.02888,3301.6,3300.5,0.59668366]
[1734940197878,3.02905,3301.4,3300.6,0.7912]
[1734940198303,3.02913,3301.3,3300.6,0.7912]
[1734940198498,3.0292,3301.2,3300.6,0.7912]
[1734940198793,3.02919,3301.3,3300.6,0.7912]
[1734940199592,0.378985,3301.7,3300.6,0.7912]
[1734940199593,3.02894,3301.5,3300.6,0.7912]
[1734940199744,3.3697325,3301.5,3300.7,0.55]
[1734940199940,3.3697325,3301.5,3300.3,9.32376741]
[1734940199941,0.7696,3301.4,3300.5,0.55]
[1734940200285,0.7696,3301.4,3300.4,0.55]
[1734940200488,3.0294,3301.0,3300.4,0.55]
[1734940200785,3.02922,3301.2,3300.4,0.55]
[1734940201289,0.7696,3301.4,3300.4,0.55]
[1734940201485,3.029,3301.5,3300.4,0.55]
[1734940201690,3.02884,3301.6,3300.7,0.55]
[1734940201857,1.203685,3301.7,3300.8,3.02954]
[1734940202198,1.203685,3301.7,3300.7,0.55]
[1734940202199,3.8284,3302.4,3301.1,0.55]
[1734940202347,0.68565,3302.3,3301.1,0.55]
[1734940202695,3.02867,3301.8,3301.1,0.55]
[1734940202889,0.68565,3302.3,3301.1,0.55]
[1734940203074,3.02903,3301.4,3301.0,0.7902]
[1734940203382,3.02929,3301.1,3300.8,0.55]
[1734940203556,3.02943,3301.0,3300.7,0.7901]
[1734940203980,3.0292,3301.2,3300.7,0.7901]
[1734940204383,0.7558,3301.7,3300.4,0.7901]
[1734940204607,3.02947,3301.0,3300.4,0.7901]
[1734940204781,3.02949,3300.9,3300.4,0.7901]
[1734940205308,3.02979,3300.6,3300.4,0.7901]
[1734940205522,3.0296,3300.8,3300.4,0.7901]
[1734940205729,0.7558,3301.0,3300.4,0.7901]
[1734940205903,3.02969,3300.7,3300.4,0.7901]
[1734940206107,0.7558,3301.5,3300.4,0.7901]
[1734940206294,3.02951,3300.9,3300.4,0.7901]
[1734940206629,0.416308,3301.4,3300.4,0.7901]
[1734940206839,3.0297,3300.7,3300.4,0.7901]
[1734940208210,3.02946,3301.0,3300.4,0.7901]
[1734940208409,3.02984,3300.5,3300.4,0.7901]
[1734940208579,3.02969,3300.7,3300.4,0.7901]
[1734940209912,3.02949,3300.9,3300.4,0.7901]
[1734940210287,3.7558,3301.5,3300.4,0.7901]
[1734940210490,0.678469,3301.4,3300.4,0.7901]
[1734940210688,3.02964,3300.8,3300.4,0.7901]
[1734940212814,3.02968,3300.7,3300.4,0.7901]
[1734940213385,0.7622,3300.6,3299.8,0.59302674]
[1734940213596,3.03057,3299.7,3299.6,0.8272]
[1734940213938,0.7622,3300.0,3299.3,0.8272]
[1734940214227,0.7622,3300.0,3298.7,8.72955964]
[1734940214426,3.03068,3299.6,3298.7,8.72955964]
[1734940215126,0.7622,3300.0,3298.7,8.72955964]
[1734940215275,0.40008345,3301.1,3298.6,0.7626]
[1734940215276,0.7899,3299.7,3298.6,0.7626]
[1734940215472,0.7899,3299.5,3298.0,0.7626]
[1734940215785,3.03152,3298.7,3298.0,0.7626]
[1734940215975,6.03085,3299.4,3298.0,0.7626]
[1734940216177,0.7768,3298.8,3298.0,0.7626]
[1734940216479,3.03187,3298.3,3298.0,0.7626]
[1734940217212,3.8082,3298.8,3298.0,0.7626]
[1734940217213,3.03168,3298.6,3298.0,0.7626]
[1734940217414,3.03169,3298.5,3298.0,0.7626]
[1734940217579,3.03178,3298.4,3298.0,0.7626]
[1734940217779,0.7768,3298.8,3298.0,0.7626]
[1734940218016,3.80822,3298.8,3298.0,0.7626]
[1734940218313,0.7768,3298.8,3298.0,0.7626]
[1734940218539,3.0,3299.5,3298.1,0.55]
[1734940218739,3.03105,3299.2,3298.1,0.55]
[1734940218896,3.86206,3299.4,3298.2,3.0]
[1734940219099,3.03086,3299.4,3298.3,3.55]
[1734940219494,3.03062,3299.7,3298.3,3.55]
[1734940219715,3.03098,3299.3,3298.3,3.55]
[1734940220237,3.03098,3299.3,3298.4,3.0]
[1734940220440,3.03098,3299.3,3298.5,0.55]
[1734940221624,3.03062,3299.7,3298.5,0.55]
[1734940221928,3.03104,3299.2,3298.5,0.55]
[1734940222327,3.03104,3299.2,3298.4,0.55]
[1734940222893,3.03086,3299.4,3298.4,0.55]
[1734940223095,3.03086,3299.4,3298.5,0.7752]
[1734940226492,3.03097,3299.3,3298.5,0.7752]
[1734940226698,0.303097,3299.3,3298.5,0.7752]
[1734940227033,3.03112,3299.2,3298.5,0.7752]
[1734940227232,0.7788,3299.5,3298.5,0.7752]
[1734940227420,3.03142,3298.8,3298.2,0.8049]
[1734940228137,3.03085,3299.4,3298.2,0.8049]
[1734940228337,3.03074,3299.6,3298.6,0.8049]
[1734940228508,3.03074,3299.6,3298.7,0.55]
[1734940229140,0.7788,3299.8,3298.7,0.55]
[1734940229141,3.03122,3299.0,3298.7,0.55]
[1734940229344,3.03122,3299.0,3298.6,0.8049]
[1734940229717,0.303122,3299.0,3298.6,0.8049]
[1734940229922,3.03143,3298.8,3298.3,0.8049]
[1734940230906,3.03123,3299.0,3298.3,0.8049]
[1734940231238,3.03065,3299.7,3298.6,0.55]
[1734940231606,3.03112,3299.2,3298.6,0.55]
[1734940231912,3.03117,3299.1,3298.6,0.55]
[1734940232317,3.03079,3299.5,3298.6,0.55]
[1734940232318,3.03122,3299.0,3298.6,0.55]
[1734940233151,3.03079,3299.5,3298.6,0.55]
[1734940233306,3.333869,3299.5,3298.6,0.55]
[1734940233502,3.03131,3298.9,3298.5,0.8162]
[1734940234354,3.03094,3299.3,3298.5,0.8162]
[1734940234531,0.7598,3299.4,3298.2,0.8061]
[1734940234532,3.03156,3298.7,3298.2,0.8061]
[1734940235243,3.03156,3298.7,3297.7,0.7847]
[1734940235244,1.120156,3298.7,3297.7,0.7847]
[1734940235469,3.03198,3298.2,3297.7,0.7847]
[1734940235674,3.03207,3298.1,3297.7,0.7847]
[1734940236573,0.817,3298.7,3297.7,0.7847]
[1734940236759,0.817,3298.7,3297.4,1.3507]
[1734940236940,3.03206,3298.1,3297.4,0.8007]
[1734940238281,3.03204,3298.2,3297.5,0.55]
[1734940239482,0.817,3298.7,3297.5,3.55]
[1734940239657,3.03085,3299.4,3298.0,0.8332]
[1734940239856,0.827,3299.5,3298.3,0.55]
[1734940240054,3.03059,3299.7,3298.7,3.03145]
[1734940240282,3.03059,3299.7,3298.5,0.55]
[1734940240283,3.03122,3299.1,3298.8,0.7698]
[1734940240579,0.385759,3299.7,3298.3,11.72955964]
[1734940240580,3.03106,3299.2,3298.4,0.7698]
[1734940240971,3.03076,3299.5,3298.4,0.7698]
[1734940241181,0.385759,3299.7,3298.5,0.55]
[1734940241345,3.03058,3299.7,3298.6,0.55]
[1734940241547,0.8192,3300.3,3299.0,0.55]
[1734940241860,3.84929,3300.3,3299.0,0.55]
[1734940242058,3.03084,3299.5,3298.9,0.7698]
[1734940242255,3.03088,3299.4,3298.9,0.7698]
[1734940242673,3.03068,3299.6,3298.9,0.7698]
[1734940243508,3.8192,3300.3,3299.0,0.55]
[1734940243798,3.0303,3300.0,3299.1,0.7541]
[1734940243964,3.0303,3300.0,3299.2,0.55]
[1734940244895,0.8192,3300.3,3299.2,0.55]
[1734940245203,3.03011,3300.2,3299.1,0.7541]
[1734940245379,3.03056,3299.8,3299.1,0.7541]
[1734940246414,0.759,3300.6,3299.3,0.787]
[1734940246581,0.759,3301.1,3299.7,0.787]
[1734940246906,3.02955,3300.9,3299.8,0.55]
[1734940247130,3.02969,3300.7,3299.8,0.55]
[1734940248013,3.02979,3300.6,3299.8,0.55]
[1734940252450,0.32884382,3301.0,3299.8,0.55]
[1734940252587,3.02947,3300.9,3299.9,0.8005]
[1734940252894,3.0296,3300.8,3299.9,0.8005]
[1734940253224,3.02938,3301.0,3299.9,0.8005]
[1734940253419,3.02965,3300.8,3299.9,0.8005]
[1734940255287,3.02979,3300.6,3299.9,0.8005]
[1734940257629,3.02989,3300.5,3299.9,0.8005]
[1734940258739,3.0301,3300.3,3299.9,0.8005]
[1734940259409,3.0302,3300.2,3299.9,0.8005]
[1734940259970,3.0302,3300.2,3299.6,3.0]
[1734940259971,0.7508,3300.6,3299.6,0.8291]
[1734940260123,3.03085,3299.4,3299.3,0.8291]
[1734940260322,3.80261,3300.0,3299.3,0.8291]
[1734940260506,3.0308,3299.5,3299.3,0.8291]
[1734940261126,3.03094,3299.3,3298.7,0.8204]
[1734940261307,3.03116,3299.1,3298.7,0.8204]
[1734940261729,3.03062,3299.7,3298.7,0.8204]
[1734940262039,3.0314,3298.8,3298.7,0.8204]
[1734940262409,0.7763,3299.3,3298.3,0.8204]
[1734940262740,3.03154,3298.7,3298.3,0.8204]
[1734940263243,3.03182,3298.4,3297.8,0.8204]
[1734940263543,3.03202,3298.2,3297.8,0.8204]
[1734940263905,3.03163,3298.6,3297.8,0.8204]
[1734940264161,3.79941,3299.2,3298.0,2.8049892]
[1734940264307,3.03131,3298.9,3298.1,0.7616]
[1734940265150,3.03096,3299.3,3298.4,1.3594]
[1734940265350,2.52943816,3299.5,3299.1,0.8137]
[1734940265553,2.52943816,3299.5,3299.3,2.8049892]
[1734940265752,2.52943816,3299.5,3299.1,0.8137]
[1734940266057,3.03059,3299.7,3299.2,0.55]
[1734940266251,3.0304,3299.9,3299.2,0.55]
[1734940266941,3.03056,3299.8,3299.2,0.55]
[1734940267259,2.63943816,3300.0,3299.3,0.7724]
[1734940267439,0.11,3300.0,3299.3,0.7724]
[1734940269036,3.14031,3300.0,3299.3,0.7724]
[1734940269921,0.11,3300.0,3299.4,0.55]
[1734940270127,0.11,3300.0,3299.6,3.3549892]
[1734940270318,0.11,3300.0,3299.8,3.58045]
[1734940270544,0.11,3300.0,3299.8,0.55]
[1734940270749,0.11,3300.0,3299.9,0.55]
[1734940271331,0.11,3300.0,3299.7,0.7677]
[1734940272865,3.02986,3300.5,3299.7,3.7677]
[1734940273450,6.02906,3301.4,3299.9,2.8049892]
[1734940273779,3.0292,3301.2,3300.2,0.55]
[1734940274081,3.02939,3301.0,3300.2,0.55]
[1734940274408,0.7694,3301.3,3300.2,0.55]
[1734940274610,3.02948,3300.9,3300.2,0.55]
[1734940275097,3.02936,3301.1,3300.1,0.7737]
[1734940275385,3.0297,3300.7,3300.1,0.7737]
[1734940275944,3.02977,3300.6,3300.1,0.7737]
[1734940276150,3.02959,3300.8,3300.1,0.7737]
[1734940276457,3.02966,3300.7,3300.1,0.7737]
[1734940277950,3.02947,3300.9,3300.1,0.7737]
[1734940278157,3.0298,3300.6,3300.1,0.7737]
[1734940279056,3.03002,3300.3,3299.8,1.3067]
[1734940281484,3.02983,3300.6,3299.8,1.3067]
[1734940281808,3.8302,3301.3,3299.9,0.7501]
[1734940281983,0.685928,3301.2,3300.1,0.7501]
[1734940282161,3.715128,3301.2,3300.2,0.55]
[1734940282367,3.0296,3300.8,3300.2,0.55]
[1734940282567,0.8302,3301.1,3299.9,8.72955964]
[1734940282813,0.8302,3300.8,3299.5,0.7501]
[1734940283008,3.03118,3299.1,3298.8,0.7501]
[1734940283603,3.03118,3299.1,3298.8,1.999755]
[1734940284005,3.861,3299.5,3298.8,1.999755]
[1734940284321,0.25,3301.0,3298.5,2.49931001]
[1734940284322,2.52943816,3300.4,3299.1,0.7501]
[1734940284475,3.03017,3300.2,3299.6,0.55]
[1734940286363,3.03021,3300.1,3299.6,0.55]
[1734940286775,0.8302,3300.5,3299.5,0.7501]
[1734940286981,3.0305,3299.8,3299.5,0.7501]
[1734940288306,3.03059,3299.7,3299.1,0.7957]
[1734940288499,3.03059,3299.7,3299.1,1.3457]
[1734940289015,3.03044,3299.9,3299.1,1.3457]
[1734940289187,3.03048,3299.9,3299.1,1.3457]
[1734940289910,3.03051,3299.8,3299.1,1.3457]
[1734940291075,3.02993,3300.4,3299.1,1.3457]
[1734940291286,2.52943816,3300.6,3299.1,0.7957]
[1734940291287,3.03096,3299.3,3299.1,0.7957]
[1734940293014,3.78447,3299.7,3298.8,0.7925]
[1734940293015,3.03106,3299.2,3298.8,0.7925]
[1734940295812,3.03121,3299.1,3298.3,12.54375964]
[1734940296017,3.03122,3299.0,3298.4,0.55]
[1734940296677,3.03085,3299.4,3298.3,0.8142]
[1734940296935,3.03159,3298.6,3298.3,0.8142]
[1734940297276,0.7978,3299.1,3297.9,0.8142]
[1734940297500,3.03205,3298.1,3297.9,0.8142]
[1734940297701,3.03189,3298.3,3297.9,0.8142]
[1734940298117,3.03167,3298.6,3297.9,0.8142]
[1734940298302,3.03194,3298.3,3297.9,0.8142]
[1734940298491,3.03167,3298.6,3297.9,0.8142]
[1734940299205,3.03197,3298.2,3297.9,0.8142]
[1734940299604,3.03212,3298.1,3297.9,0.8142]
[1734940299780,3.03214,3298.0,3297.9,0.8142]
[1734940299983,3.03214,3298.0,3297.2,3.0]
[1734940299984,3.03306,3297.0,3296.4,3.12413752]
[1734940300217,3.03306,3297.0,3296.9,5e-06]
[1734940300424,3.414806,3297.0,3296.9,5e-06]
[1734940300629,3.03333,3296.7,3296.6,5e-06]
[1734940301189,3.81773,3296.7,3296.6,5e-06]
[1734940302019,3.81773,3296.7,3295.3,0.7733]
[1734940302020,3.03395,3296.1,3295.3,0.7733]
[1734940302584,3.03395,3296.1,3295.5,0.55]
[1734940303399,3.03395,3296.1,3295.4,0.55]
[1734940303900,3.03416,3295.8,3295.3,0.7733]
[1734940304095,3.03429,3295.7,3295.3,0.7733]
[1734940304520,3.03352,3296.5,3295.1,0.1698644]
[1734940304521,0.779,3295.8,3295.1,0.1698644]
[1734940304825,3.03447,3295.5,3295.1,0.1698644]
[1734940305010,0.779,3295.8,3295.1,0.1698644]
[1734940305212,3.03467,3295.3,3295.1,0.1698644]
[1734940305407,3.03471,3295.2,3295.1,0.1698644]
[1734940307188,3.81321,3295.8,3295.1,0.1698644]
[1734940307496,3.03452,3295.5,3295.1,0.1698644]
[1734940307924,3.03454,3295.4,3295.1,0.1698644]
[1734940308104,3.03462,3295.3,3295.1,0.1698644]
[1734940308302,3.03471,3295.2,3295.1,0.1698644]
[1734940308595,3.337994,3295.4,3295.1,0.1698644]
[1734940308788,0.779,3295.8,3295.1,0.1698644]
[1734940308789,3.03433,3295.7,3295.1,0.1698644]
[1734940308990,3.03433,3295.7,3295.2,0.7684]
[1734940309890,0.7905,3296.2,3295.2,0.7684]
[1734940310083,3.03439,3295.6,3295.1,0.1698644]
[1734940310831,3.0,3296.0,3295.1,0.1698644]
[1734940311038,0.603388,3295.9,3295.1,0.1698644]
[1734940311393,3.03428,3295.7,3295.1,0.1698644]
[1734940312532,3.03434,3295.6,3295.1,0.1698644]
[1734940313114,3.03444,3295.5,3295.1,0.1698644]
[1734940314024,3.03456,3295.4,3295.1,0.1698644]
[1734940314237,3.338016,3295.4,3295.1,0.1698644]
[1734940315201,3.03434,3295.7,3295.1,0.1698644]
[1734940315411,0.603388,3295.9,3295.1,0.1698644]
[1734940315616,3.03443,3295.6,3295.1,0.1698644]
[1734940318565,3.03388,3296.1,3295.1,0.1698644]
[1734940318725,0.7905,3296.2,3295.1,0.1698644]
[1734940318726,0.7905,3296.2,3295.4,0.55]
[1734940318933,3.03379,3296.3,3295.4,0.55]
[1734940319114,3.337169,3296.3,3295.4,0.55]
[1734940319743,0.303379,3296.3,3295.4,0.55]
[1734940319947,3.03389,3296.1,3295.4,0.55]
[1734940320450,0.7622,3296.2,3295.3,0.762]
[1734940320659,3.0344,3295.6,3295.3,0.762]
[1734940320821,0.7622,3296.2,3295.4,0.55]
[1734940321423,3.03407,3295.9,3295.4,0.55]
[1734940321912,3.0,3296.8,3295.4,0.55]
[1734940321913,3.03396,3296.1,3295.4,0.55]
[1734940322117,3.03369,3296.4,3295.4,9.27955964]
[1734940322339,0.7675,3296.7,3295.6,3.3549892]
[1734940322538,3.0,3296.8,3295.6,3.3549892]
[1734940322539,3.03344,3296.6,3295.9,0.8305]
[1734940322738,3.03322,3296.9,3296.0,0.55]
[1734940323134,3.03351,3296.6,3296.0,0.55]
[1734940323333,1.160846,3297.0,3295.9,0.8305]